bitfinex/quotes_ETHUSD_20250428
["timestamp","ask_amount","ask_price","bid_price","bid_amount"]
[1745813575221,4.44890782,1789.6,1789.3,5.5885593]
[1745813575525,1.04832612,1790.6,1789.6,5.58784085]
[1745813575526,0.7898,1790.0,1789.6,5.58784085]
[1745813575720,6.8498,1790.0,1789.7,4.742]
[1745813576031,7.16307803,1790.0,1789.7,4.742]
[1745813576929,7.48270782,1790.0,1789.7,4.742]
[1745813577387,7.48270782,1790.0,1789.7,10.32952119]
[1745813577929,7.48270782,1790.0,1789.7,4.742]
[1745813578737,0.63290782,1789.8,1789.7,4.742]
[1745813580804,0.63290782,1789.8,1789.5,4.741]
[1745813583823,0.7929,1789.7,1789.5,4.741]
[1745813584124,0.7929,1789.7,1789.4,4.74]
[1745813584125,0.63290782,1789.6,1789.4,4.74]
[1745813584329,1.33290782,1789.6,1789.4,4.74]
[1745813585234,0.63290782,1789.6,1789.4,4.74]
[1745813586431,0.63290782,1789.6,1789.3,5.58874208]
[1745813586613,0.63290782,1789.6,1789.3,10.32774208]
[1745813587131,0.63290782,1789.6,1789.0,16.785]
[1745813587306,0.7735,1789.5,1789.1,4.739]
[1745813587506,0.7735,1789.5,1789.1,10.32822703]
[1745813587825,0.7735,1789.5,1789.2,4.739]
[1745813588142,0.63290782,1789.4,1789.0,5.58970123]
[1745813588303,0.63290782,1789.4,1789.2,4.739]
[1745813588649,0.7735,1789.3,1788.7,5.32371295]
[1745813588800,0.63290782,1789.2,1788.8,10.32922944]
[1745813589205,1.33290782,1789.2,1788.8,10.32922944]
[1745813590029,1.33290782,1789.2,1788.7,5.59047284]
[1745813590239,1.33290782,1789.2,1788.8,5.59033469]
[1745813590445,1.33290782,1789.2,1788.8,10.32933469]
[1745813591308,1.33290782,1789.2,1788.8,4.739]
[1745813591510,1.33290782,1789.2,1788.9,5.58991044]
[1745813591705,0.7,1789.2,1789.0,5.58970844]
[1745813591946,0.7,1789.2,1788.9,5.58982852]
[1745813593008,0.7,1789.2,1788.8,10.32914693]
[1745813593209,0.7726,1789.1,1788.8,4.739]
[1745813593408,0.7726,1789.1,1788.8,10.32933051]
[1745813595024,0.75778773,1789.1,1788.8,10.32933051]
[1745813596731,0.75778773,1789.1,1788.8,10.32916388]
[1745813596931,0.7,1789.2,1788.9,5.58988827]
[1745813600145,0.7,1789.2,1789.0,4.74]
[1745813600653,0.7,1789.2,1789.1,5.60620249]
[1745813602738,0.7,1789.2,1789.0,10.3295334]
[1745813605169,0.7,1789.2,1789.0,10.32966345]
[1745813605526,0.7,1789.2,1789.1,5.58940249]
[1745813606826,0.7,1789.2,1789.0,10.32959919]
[1745813609471,0.7,1789.2,1789.1,5.58940249]
[1745813610763,0.7,1789.2,1789.1,10.32940249]
[1745813610965,0.7,1789.2,1789.1,10.34620249]
[1745813615774,0.7,1789.2,1789.1,10.32940249]
[1745813632512,0.7,1789.2,1789.1,4.738]
[1745813632657,0.7,1789.2,1789.1,10.32740249]
[1745813633699,6.06,1789.6,1789.4,5.5884654]
[1745813633928,6.06,1790.0,1789.8,5.58721644]
[1745813634097,0.826,1790.1,1789.9,10.32488057]
[1745813634300,0.826,1790.1,1789.9,4.738]
[1745813634459,0.3143694,1790.0,1789.9,4.738]
[1745813634862,0.826,1790.1,1789.9,4.738]
[1745813635562,0.826,1790.1,1789.9,10.32484115]
[1745813636797,0.826,1790.1,1789.9,4.738]
[1745813637709,0.826,1790.1,1790.0,4.737]
[1745813637913,0.826,1790.1,1789.4,16.8008]
[1745813638100,0.7836,1789.8,1789.5,10.32511225]
[1745813638624,0.7836,1789.8,1789.5,10.32489847]
[1745813638787,0.7836,1789.8,1789.5,4.737]
[1745813638991,0.7836,1789.8,1789.6,5.58762946]
[1745813640011,0.7,1789.7,1789.5,10.32490583]
[1745813640305,0.7,1789.7,1789.5,4.737]
[1745813640508,0.7,1789.7,1789.6,4.737]
[1745813642411,0.7,1789.7,1789.6,10.32484085]
[1745813643408,0.7,1789.7,1789.6,4.737]
[1745813643611,1.4823,1789.7,1789.6,4.737]
[1745813645529,1.4823,1789.7,1789.6,10.32484085]
[1745813645832,0.7,1789.7,1789.6,10.32484085]
[1745813646630,0.7,1789.7,1789.6,4.737]
[1745813651339,0.7,1789.7,1789.4,22.3722624]
[1745813651501,0.7,1789.7,1789.6,4.735]
[1745813653037,0.7,1789.7,1789.4,16.784]
[1745813653197,0.7,1789.7,1789.5,4.735]
[1745813654131,0.7,1789.7,1789.6,4.735]
[1745813654304,0.7916,1789.6,1789.4,16.784]
[1745813654640,0.7916,1789.6,1789.5,4.735]
[1745813656329,0.7916,1789.6,1789.4,16.784]
[1745813656534,0.7916,1789.6,1789.4,21.519]
[1745813657701,0.7916,1789.6,1789.3,4.735]
[1745813657702,0.63159251,1789.5,1789.3,4.735]
[1745813662330,0.63159251,1789.5,1789.2,5.58896473]
[1745813663138,1.42319251,1789.6,1789.3,4.736]
[1745813663979,1.42319251,1789.6,1789.3,10.32466133]
[1745813665239,1.42319251,1789.6,1789.3,10.3246612]
[1745813665740,6.76,1789.7,1789.6,5.58784085]
[1745813666807,0.7,1789.7,1789.5,5.58799957]
[1745813667330,0.7,1789.7,1789.6,5.58784085]
[1745813667745,0.7,1789.7,1789.6,10.32384085]
[1745813672459,0.7,1789.7,1789.6,10.34064085]
[1745813672645,3.0,1790.3,1790.1,5.58612103]
[1745813672646,0.8159,1790.3,1790.1,5.58612103]
[1745813672840,3.8159,1790.3,1790.0,10.32244571]
[1745813673661,0.63159251,1790.2,1790.0,10.32244571]
[1745813676060,0.63159251,1790.2,1790.0,4.736]
[1745813677829,0.63159251,1790.2,1790.0,10.32255874]
[1745813678863,0.63159251,1790.2,1790.0,4.736]
[1745813679867,0.63159251,1790.2,1790.0,10.32239004]
[1745813680163,0.63159251,1790.4,1790.1,5.58628009]
[1745813680862,0.63159251,1790.4,1790.1,11.17233269]
[1745813681065,0.63159251,1790.4,1790.1,5.5860526]
[1745813681266,0.4154183,1790.6,1790.2,0.0168]
[1745813681436,0.4154183,1790.6,1790.5,5.60183211]
[1745813681641,0.4154183,1790.6,1790.5,10.33483211]
[1745813682173,6.892,1791.5,1790.5,10.33483211]
[1745813682378,0.832,1791.3,1790.8,5.58380696]
[1745813682666,1.26359251,1791.3,1790.9,10.31677213]
[1745813683239,1.26359251,1791.3,1790.9,4.733]
[1745813683434,1.26359251,1791.3,1790.9,5.58366266]
[1745813683661,1.26359251,1791.3,1790.8,5.58393924]
[1745813683868,0.63159251,1791.1,1790.9,4.732]
[1745813684778,0.63159251,1791.1,1790.7,5.58437346]
[1745813684981,0.63159251,1791.1,1790.8,4.732]
[1745813685780,0.632,1791.3,1790.6,16.779]
[1745813685781,1.46359251,1790.9,1790.6,16.779]
[1745813686073,1.46359251,1790.9,1790.7,4.732]
[1745813686273,1.46359251,1790.9,1790.8,4.732]
[1745813686840,1.46359251,1790.9,1790.6,16.779]
[1745813687071,1.46359251,1790.9,1790.7,4.732]
[1745813687265,1.46359251,1790.9,1790.6,16.779]
[1745813687453,0.63159251,1790.9,1790.8,4.732]
[1745813687659,3.0,1791.1,1790.8,4.9488]
[1745813687953,3.63159251,1791.1,1790.8,4.732]
[1745813688878,6.69159251,1791.2,1790.9,4.732]
[1745813689284,0.63159251,1791.0,1790.6,16.9958]
[1745813689587,0.63159251,1791.0,1790.7,4.732]
[1745813689777,0.63159251,1791.0,1790.8,4.732]
[1745813691981,0.63159251,1791.0,1790.6,22.36357654]
[1745813692284,0.63159251,1791.0,1790.9,4.731]
[1745813692576,0.63159251,1791.0,1790.6,22.36357654]
[1745813692795,0.63159251,1791.0,1790.9,4.731]
[1745813693155,1.07586176,1791.0,1790.6,16.779]
[1745813693351,1.40929251,1790.8,1790.6,16.779]
[1745813693887,1.40929251,1790.8,1790.5,4.731]
[1745813694048,0.63159251,1790.6,1790.2,5.585927]
[1745813694245,0.7777,1790.5,1790.3,4.731]
[1745813694458,0.63159251,1790.4,1790.1,0.2168]
[1745813694662,0.63159251,1790.4,1790.2,4.731]
[1745813694887,0.7777,1790.5,1790.2,4.731]
[1745813694888,0.7777,1790.5,1790.2,10.31693947]
[1745813695081,1.40929251,1790.5,1790.2,5.58593947]
[1745813695306,1.40929251,1790.5,1790.3,4.731]
[1745813695797,1.40929251,1790.5,1790.2,5.58593947]
[1745813696107,1.40929251,1790.5,1790.3,4.731]
[1745813699585,1.40929251,1790.5,1790.4,4.731]
[1745813701088,0.8075,1791.2,1790.4,4.9478]
[1745813701400,1.43909251,1791.2,1790.9,5.58363637]
[1745813701693,1.43909251,1791.2,1791.0,4.731]
[1745813703496,1.43909251,1791.2,1791.0,10.31439713]
[1745813704201,0.63159251,1791.2,1791.0,10.31439713]
[1745813705915,0.63159251,1791.2,1791.0,4.731]
[1745813706800,0.63159251,1791.4,1791.1,10.31316118]
[1745813707003,0.63159251,1791.4,1791.1,4.73]
[1745813707176,0.7907,1791.1,1790.9,4.73]
[1745813707379,0.63159251,1791.0,1790.9,10.31378468]
[1745813707569,0.63159251,1791.2,1790.9,10.31353365]
[1745813707780,0.63159251,1791.2,1790.9,10.5303666]
[1745813707980,0.63159251,1791.2,1790.9,10.53035735]
[1745813708197,0.63159251,1791.2,1791.0,5.58344717]
[1745813708389,0.63159251,1791.2,1790.9,4.9468]
[1745813708813,0.63159251,1791.2,1790.9,4.73]
[1745813709036,0.63159251,1791.0,1790.9,4.73]
[1745813709313,0.63159251,1791.0,1790.9,10.31378468]
[1745813709919,0.63159251,1791.2,1790.9,10.31378468]
[1745813710096,0.63159251,1791.2,1791.0,5.58336095]
[1745813710417,0.63159251,1791.2,1790.9,10.31356787]
[1745813711617,0.63159251,1791.2,1791.0,5.58347019]
[1745813712283,0.63159251,1791.2,1790.9,10.31356787]
[1745813712482,0.63159251,1791.2,1790.9,10.31355612]
[1745813713390,0.63159251,1791.2,1791.0,4.729]
[1745813714224,0.63159251,1791.2,1790.9,5.58354714]
[1745813714429,0.63159251,1791.0,1790.4,5.58524383]
[1745813714723,0.63159251,1790.6,1790.5,4.729]
[1745813718311,1.44339251,1790.9,1790.5,10.31389835]
[1745813718891,1.44339251,1790.9,1790.5,4.729]
[1745813719792,1.88773176,1790.9,1790.5,4.729]
[1745813721760,0.63159251,1790.7,1790.3,0.2168]
[1745813721922,0.63159251,1790.7,1790.6,4.73]
[1745813722655,0.7582,1790.6,1790.1,5.80281349]
[1745813722855,0.63159251,1790.5,1790.1,5.80281349]
[1745813723159,0.63159251,1790.5,1790.2,4.73]
[1745813723319,0.63159251,1790.5,1790.3,4.73]
[1745813724652,0.63159251,1790.5,1790.1,0.2168]
[1745813725156,0.63159251,1790.5,1790.2,4.73]
[1745813727314,0.63159251,1790.5,1790.1,0.2168]
[1745813727528,0.63159251,1790.5,1790.2,4.73]
[1745813729027,6.69159251,1790.7,1790.2,4.73]
[1745813729233,6.69159251,1790.7,1790.3,5.80223777]
[1745813731465,3.0,1790.6,1790.3,5.80223777]
[1745813732156,3.0,1790.6,1790.3,0.2168]
[1745813733428,3.0,1790.6,1790.3,5.80244582]
[1745813733763,3.0,1790.6,1790.2,4.73]
[1745813733764,0.7735,1790.5,1790.2,4.73]
[1745813733950,0.7735,1790.5,1790.1,5.80287577]
[1745813734159,1.40509251,1790.5,1790.2,4.73]
[1745813734650,1.40509251,1790.5,1790.3,4.73]
[1745813735759,1.83494119,1790.5,1790.3,4.73]
[1745813736118,1.83494119,1790.5,1789.9,8.37408308]
[1745813736119,1.54493531,1790.5,1789.9,8.37408308]
[1745813736435,0.771,1790.2,1789.9,8.15728308]
[1745813736645,0.771,1790.2,1790.0,4.729]
[1745813739095,0.771,1790.2,1789.9,8.15728308]
[1745813739264,0.771,1790.2,1790.0,4.73]
[1745813740058,0.771,1790.2,1789.9,8.15728308]
[1745813740359,0.771,1790.2,1790.0,4.73]
[1745813741466,0.771,1790.2,1789.9,8.15728308]
[1745813741666,0.771,1790.2,1790.0,4.73]
[1745813744449,0.771,1790.2,1789.9,8.15728308]
[1745813744645,0.63159251,1790.1,1789.9,8.15728308]
[1745813744852,6.69159251,1790.1,1789.9,8.15728308]
[1745813745176,3.823,1790.0,1789.8,4.73]
[1745813745733,4.10772035,1790.0,1789.8,4.73]
[1745813746471,4.10772035,1790.0,1789.6,16.774]
[1745813746773,4.10772035,1790.0,1789.7,4.73]
[1745813746973,5.18765164,1790.0,1789.7,4.73]
[1745813747337,5.18765164,1790.0,1789.6,16.774]
[1745813747535,0.63159251,1789.9,1789.6,21.505]
[1745813748473,1.05249631,1789.9,1789.6,21.505]
[1745813753246,0.8133,1789.8,1789.6,21.505]
[1745813760987,1.83559631,1789.9,1789.6,21.505]
[1745813762905,1.83559631,1789.9,1789.6,21.7218]
[1745813762906,1.2040038,1789.9,1789.6,21.7218]
[1745813763114,1.2040038,1789.9,1789.6,21.505]
[1745813765378,1.2040038,1789.9,1789.6,27.09273073]
[1745813765726,6.06,1790.1,1789.9,5.58676061]
[1745813765897,9.06,1790.1,1790.0,0.2168]
[1745813766094,3.0,1790.1,1790.0,0.2168]
[1745813766416,3.0,1790.1,1789.8,5.80385791]
[1745813767526,3.0,1790.1,1789.8,11.3908492]
[1745813767814,3.0,1790.1,1789.9,5.5866654]
[1745813769296,0.41597209,1790.2,1789.9,5.5866654]
[1745813769620,3.7831,1790.3,1790.0,4.73]
[1745813770539,3.7831,1790.3,1790.0,10.31654292]
[1745813770841,3.7831,1790.3,1790.0,4.73]
[1745813771635,4.21211973,1790.3,1790.0,4.73]
[1745813774539,6.8419,1790.7,1790.1,0.2168]
[1745813774834,0.8208,1790.8,1790.5,5.58478345]
[1745813775026,7.51239251,1791.0,1790.5,4.73]
[1745813775225,7.93259417,1791.0,1790.5,4.73]
[1745813775531,3.0,1790.9,1790.5,10.31479527]
[1745813775849,3.0,1790.9,1790.6,5.58444964]
[1745813776049,3.0,1790.9,1790.6,5.58453502]
[1745813778338,3.0,1790.9,1790.5,10.31488775]
[1745813778508,3.0,1790.9,1790.5,10.31482263]
[1745813778710,3.0,1790.9,1790.6,5.58469255]
[1745813779749,3.0,1790.9,1790.5,10.31498656]
[1745813779914,3.0,1790.9,1790.6,5.58471501]
[1745813781537,3.0,1790.9,1790.5,10.31489719]
[1745813781842,0.7604,1790.7,1790.3,5.58549999]
[1745813782044,0.7604,1790.7,1790.5,4.729]
[1745813782340,3.7604,1790.9,1790.6,5.58471663]
[1745813783343,3.7604,1790.9,1790.5,4.9458]
[1745813783522,0.63159251,1790.8,1790.5,4.729]
[1745813785325,0.63159251,1790.8,1790.5,10.31398213]
[1745813786684,3.7604,1790.9,1790.5,4.729]
[1745813786817,0.63159251,1790.8,1790.5,4.729]
[1745813787017,0.7852,1790.7,1790.5,4.729]
[1745813788161,0.7852,1790.7,1790.5,10.31402206]
[1745813788844,0.7852,1790.7,1790.5,4.729]
[1745813790257,0.7852,1790.7,1790.5,10.31401122]
[1745813790452,0.7852,1790.7,1790.5,10.31395295]
[1745813791168,0.7852,1790.7,1790.5,4.729]
[1745813795997,0.81,1790.6,1790.0,4.729]
[1745813796293,0.63159251,1790.3,1790.0,4.729]
[1745813796486,0.8199,1790.2,1790.0,4.729]
[1745813796663,0.8199,1790.2,1789.9,4.729]
[1745813796998,0.8199,1790.2,1789.9,4.728]
[1745813797604,0.8199,1790.2,1789.8,5.58718932]
[1745813797772,0.8199,1790.2,1789.9,4.728]
[1745813798372,0.8199,1790.2,1789.9,10.31489565]
[1745813799162,0.8199,1790.2,1789.9,4.728]
[1745813801602,0.8199,1790.2,1789.8,4.728]
[1745813802081,0.8199,1790.2,1789.7,5.80405357]
[1745813802407,0.8199,1790.2,1789.8,4.728]
[1745813802614,0.8199,1790.2,1789.8,10.3149311]
[1745813802787,0.8199,1790.2,1789.8,4.728]
[1745813809191,0.8199,1790.2,1789.7,4.729]
[1745813809529,0.63159251,1790.1,1789.6,22.278437]
[1745813809827,0.7512,1790.0,1789.6,5.504437]
[1745813810994,0.8282,1789.6,1789.4,4.729]
[1745813811698,0.8282,1789.6,1789.2,4.729]
[1745813813328,0.63159251,1789.5,1789.1,4.729]
[1745813813529,0.7618,1789.4,1788.9,11.39641276]
[1745813813733,0.7618,1789.4,1789.0,10.31864947]
[1745813814439,0.7618,1789.4,1789.0,10.31863633]
[1745813814734,0.7618,1789.4,1789.0,10.31870301]
[1745813814929,0.7618,1789.7,1789.2,0.63159251]
[1745813815128,3.0,1789.8,1789.4,5.58824071]
[1745813815429,3.0,1789.8,1789.4,10.3174654]
[1745813815599,3.0,1789.8,1789.4,4.729]
[1745813816343,0.7724,1789.7,1789.1,0.2168]
[1745813816646,0.7724,1789.7,1789.3,4.73]
[1745813817824,1.18694313,1789.7,1789.3,4.73]
[1745813818435,1.81853564,1789.7,1789.2,4.73]
[1745813819100,1.04613564,1789.7,1789.2,4.73]
[1745813819443,0.7724,1789.6,1789.2,4.73]
[1745813822273,0.7724,1789.6,1789.1,5.58934111]
[1745813822440,0.7724,1789.6,1789.1,10.31934111]
[1745813822774,0.7724,1789.6,1789.1,4.73]
[1745813822949,0.7724,1789.6,1789.3,5.58847011]
[1745813823267,0.7724,1789.6,1789.2,5.80573319]
[1745813823471,0.7724,1789.6,1789.2,5.58893319]
[1745813823667,0.7724,1789.6,1789.1,10.31922738]
[1745813824850,1.40399251,1789.6,1789.1,10.31922738]
[1745813825454,1.40399251,1789.6,1789.1,10.31915669]
[1745813826873,1.40399251,1789.6,1789.2,5.58905439]
[1745813827457,1.40399251,1789.6,1789.1,10.31922544]
[1745813829400,1.40399251,1789.6,1789.1,15.90839905]
[1745813829580,1.40399251,1789.6,1789.2,5.58904636]
[1745813829886,1.40399251,1789.6,1789.1,10.31923774]
[1745813832384,0.7724,1789.6,1789.3,5.5887649]
[1745813833152,0.7745,1789.9,1789.3,0.84839251]
[1745813833358,6.06,1790.0,1789.7,5.58739657]
[1745813833559,0.63159251,1790.3,1789.7,5.58739657]
[1745813833560,1.05229355,1790.2,1789.7,5.58752863]
[1745813833761,0.7745,1790.1,1789.7,5.58752863]
[1745813835094,0.7745,1790.1,1789.6,15.90536157]
[1745813835465,0.7745,1790.1,1789.7,5.58748013]
[1745813836394,0.7745,1790.1,1789.6,10.31768825]
[1745813836598,1.82548659,1790.1,1789.6,10.31768825]
[1745813836782,2.13891016,1790.1,1789.6,10.31768825]
[1745813837982,1.82548659,1790.1,1789.6,10.31768825]
[1745813838321,0.7752,1790.0,1789.5,5.587976]
[1745813838503,1.40679251,1789.9,1789.5,5.587976]
[1745813838823,0.7752,1789.8,1789.6,4.729]
[1745813839115,0.7752,1789.8,1789.5,10.31711293]
[1745813839620,0.7752,1789.8,1789.6,5.58781701]
[1745813842320,0.7752,1789.8,1789.5,10.31705174]
[1745813842519,0.7752,1789.8,1789.5,4.729]
[1745813843188,0.7752,1789.8,1789.5,10.31713755]
[1745813845233,0.7752,1789.8,1789.5,4.729]
[1745813845740,6.06,1790.4,1790.1,5.58628009]
[1745813845903,1.49275925,1790.4,1790.1,5.58602842]
[1745813846105,0.8236,1790.4,1790.1,5.58602842]
[1745813846303,0.8236,1790.4,1790.0,10.31548105]
[1745813846606,0.8236,1790.4,1790.0,10.31539486]
[1745813846803,0.8236,1790.4,1790.1,5.5861273]
[1745813847009,1.09069733,1790.5,1790.2,5.58569267]
[1745813847423,0.7773,1790.5,1790.2,5.58569267]
[1745813850843,0.7773,1790.5,1790.0,10.31547878]
[1745813851505,0.7773,1790.5,1790.1,5.58627971]
[1745813851704,0.63159251,1790.4,1790.0,10.31545567]
[1745813851974,0.63159251,1790.4,1790.1,5.58625567]
[1745813853196,0.63159251,1790.4,1790.1,5.58605212]
[1745813855806,0.63159251,1790.4,1790.0,10.3144819]
[1745813856012,0.7518,1790.3,1789.8,5.58702125]
[1745813856173,0.7518,1790.3,1790.0,4.728]
[1745813856371,0.7518,1790.3,1789.9,5.58665853]
[1745813856372,0.7518,1790.3,1789.9,4.728]
[1745813856569,1.04766725,1790.6,1789.9,4.728]
[1745813856570,0.63159251,1790.0,1789.9,4.728]
[1745813856802,0.7518,1789.9,1789.6,4.728]
[1745813856999,0.7518,1789.9,1789.6,10.31579217]
[1745813857209,0.63159251,1789.8,1789.4,5.58835513]
[1745813857412,0.63159251,1789.8,1789.5,10.31603102]
[1745813858403,0.63159251,1789.8,1789.5,5.58803102]
[1745813860914,0.7518,1789.9,1789.5,5.58803102]
[1745813860915,0.7518,1789.9,1789.6,5.58778926]
[1745813861204,0.7518,1789.9,1789.5,5.58798486]
[1745813869624,0.7518,1789.9,1789.5,5.58792519]
[1745813869816,0.7518,1789.9,1789.5,5.58815311]
[1745813870130,0.8092,1789.7,1789.4,4.728]
[1745813871200,0.8092,1789.7,1789.3,5.58862952]
[1745813871415,0.8092,1789.7,1789.3,10.31662952]
[1745813871699,0.8092,1789.7,1789.3,15.90519057]
[1745813871918,0.8092,1789.7,1789.4,5.58845081]
[1745813873831,0.8092,1789.7,1789.5,5.58812078]
[1745813874131,0.8092,1789.7,1789.6,5.58784085]
[1745813874703,0.8092,1789.7,1789.5,5.58796852]
[1745813875621,0.7535,1789.8,1789.6,5.58784085]
[1745813876820,0.7535,1789.8,1789.5,5.58804074]
[1745813877701,0.7535,1789.8,1789.6,5.58771587]
[1745813880703,0.7535,1789.8,1789.7,5.58752863]
[1745813880905,0.7534,1790.0,1789.8,5.58707285]
[1745813881104,3.7534,1790.2,1789.8,5.58707285]
[1745813881304,1.66469925,1790.2,1789.8,11.17404751]
[1745813881505,4.728,1790.6,1790.1,5.58628009]
[1745813881506,1.44099251,1790.6,1790.1,5.58628009]
[1745813881740,0.63159251,1790.6,1790.0,5.58640221]
[1745813881973,0.63159251,1790.4,1790.0,5.58640221]
[1745813882103,0.766,1790.3,1790.0,5.58640221]
[1745813882623,0.31333099,1790.5,1790.2,5.58596804]
[1745813882825,0.8251,1790.5,1790.2,5.58596804]
[1745813883018,0.8251,1790.5,1790.1,5.58607666]
[1745813884542,0.8251,1790.5,1790.1,11.17212736]
[1745813884841,0.8251,1790.5,1790.1,5.5860507]
[1745813885415,0.8251,1790.5,1790.2,5.58593378]
[1745813886144,0.8251,1790.5,1790.2,5.58575161]
[1745813886326,0.8251,1790.5,1790.2,5.58574887]
[1745813888147,0.8251,1790.5,1790.1,5.5861826]
[1745813889421,0.8251,1790.5,1790.1,11.1722241]
[1745813889621,0.8251,1790.5,1790.1,5.5860415]
[1745813889821,0.8251,1790.5,1790.2,5.58595522]
[1745813890555,0.8251,1790.5,1790.3,5.58551917]
[1745813890852,0.7511,1790.7,1790.5,5.58480049]
[1745813891256,0.7511,1790.7,1790.4,5.58532674]
[1745813893259,0.7511,1790.7,1790.4,5.58515711]
[1745813895454,0.7511,1790.7,1790.4,5.585132]
[1745813897272,0.773,1790.9,1790.5,5.80160276]
[1745813897473,0.28654595,1791.1,1790.6,5.58449002]
[1745813897474,1.05954595,1791.1,1790.6,5.58449002]
[1745813897768,0.773,1791.1,1790.7,5.58422414]
[1745813897984,0.773,1791.1,1790.7,5.58425938]
[1745813898342,0.773,1791.1,1790.6,5.58451887]
[1745813898543,0.773,1790.9,1790.5,5.80158282]
[1745813898749,0.773,1790.9,1790.6,5.58471101]
[1745813899575,0.797,1791.1,1790.8,5.58390051]
[1745813901787,0.797,1791.1,1790.7,5.58429835]
[1745813901960,0.797,1791.1,1790.7,11.16846847]
[1745813902285,0.797,1791.1,1790.8,11.16795757]
[1745813902599,0.797,1791.1,1790.8,5.58387738]
[1745813905154,0.797,1791.1,1790.7,5.58426883]
[1745813905569,0.63159251,1791.0,1790.6,5.58455309]
[1745813905772,0.63159251,1791.0,1790.7,5.58437757]
[1745813908063,0.797,1791.1,1790.7,5.58437757]
[1745813908267,0.797,1791.1,1790.8,5.58409582]
[1745813908474,0.797,1791.1,1790.8,5.58408404]
[1745813909499,0.797,1791.1,1790.8,11.16775159]
[1745813909690,0.797,1791.1,1790.8,5.58385529]
[1745813910096,0.797,1791.1,1790.7,5.80102507]
[1745813910296,0.797,1791.1,1790.7,5.58422507]
[1745813911011,0.797,1791.1,1790.7,11.16840053]
[1745813911198,0.797,1791.1,1790.7,5.58417546]
[1745813912414,0.797,1791.1,1790.7,5.58417242]
[1745813912585,0.797,1791.1,1790.8,5.58404653]
[1745813913286,0.797,1791.1,1790.7,10.30817482]
[1745813914112,0.797,1791.1,1790.7,4.724]
[1745813914298,1.42249251,1791.0,1790.7,4.724]
[1745813920916,1.42249251,1791.0,1790.6,10.30749487]
[1745813922042,1.42249251,1791.0,1790.7,5.58438538]
[1745813922329,1.42249251,1791.0,1790.6,10.30754536]
[1745813923722,1.42249251,1791.0,1790.6,10.30752038]
[1745813923885,1.42249251,1791.0,1790.6,10.30758287]
[1745813924400,1.42249251,1791.0,1790.7,5.58429049]
[1745813924727,0.7909,1791.0,1790.8,5.5840914]
[1745813925099,0.7909,1791.0,1790.7,5.58422344]
[1745813925843,0.7909,1791.0,1790.7,5.5841786]
[1745813926828,0.7909,1791.0,1790.7,5.58417598]
[1745813927036,0.7909,1791.0,1790.8,5.58391679]
[1745813928591,0.7909,1791.0,1790.7,5.58418103]
[1745813928923,0.7909,1791.0,1790.7,11.16835278]
[1745813929295,0.7909,1791.0,1790.7,5.58417175]
[1745813929699,0.7409,1791.0,1790.7,11.16833411]
[1745813930624,0.7409,1791.0,1790.7,5.58416236]
[1745813930822,0.7409,1791.0,1790.7,11.16832909]
[1745813931520,0.7409,1791.0,1790.7,5.58416236]
[1745813931881,0.7409,1791.0,1790.7,11.16834989]
[1745813932429,6.06,1791.8,1791.0,5.58332424]
[1745813932635,6.06,1791.8,1790.9,5.58359877]
[1745813932636,0.63159251,1791.4,1790.9,5.58359877]
[1745813932934,0.8152,1791.3,1790.9,5.58359877]
[1745813933429,0.63159251,1791.2,1790.9,5.58359877]
[1745813933595,0.63159251,1791.2,1790.9,5.58357076]
[1745813933797,0.8152,1791.1,1790.7,5.58427777]
[1745813934099,0.8152,1791.1,1790.8,4.723]
[1745813935148,0.8152,1791.1,1790.8,10.30705284]
[1745813935990,0.8152,1791.1,1790.8,10.30685167]
[1745813936232,0.8152,1791.1,1790.9,5.58366196]
[1745813936435,1.42859251,1791.3,1790.9,5.58357183]
[1745813936604,1.42859251,1791.3,1791.0,5.58345821]
[1745813937001,0.31408553,1791.2,1791.0,5.58345821]
[1745813937203,0.31408553,1791.2,1791.0,5.58332287]
[1745813937541,0.94567804,1791.2,1791.0,5.58329471]
[1745813938106,0.63159251,1791.2,1791.0,5.58329471]
[1745813938798,1.42859251,1791.3,1791.1,5.58316118]
[1745813940234,1.42859251,1791.3,1791.1,11.1660814]
[1745813940534,0.8159,1791.4,1791.2,5.58284948]
[1745813942232,0.8159,1791.4,1791.2,5.58264673]
[1745813942460,0.7774,1791.2,1790.8,0.2668]
[1745813942602,0.63159251,1791.0,1790.9,4.722]
[1745813942934,0.63159251,1791.0,1790.7,5.58418369]
[1745813943232,0.7774,1791.0,1790.7,15.89034325]
[1745813943432,1.40899251,1791.4,1791.0,5.58334634]
[1745813943638,1.70899251,1791.4,1790.9,5.58360706]
[1745813943838,0.31376625,1791.3,1790.9,5.58360706]
[1745813944035,1.40899251,1791.2,1790.7,4.722]
[1745813944223,0.63159251,1791.0,1790.8,4.722]
[1745813945938,0.63159251,1791.0,1790.6,5.58457615]
[1745813945939,0.63159251,1791.0,1790.7,4.722]
[1745813946341,0.63159251,1791.0,1790.6,5.58457615]
[1745813946547,0.63159251,1791.0,1790.7,4.722]
[1745813947248,1.40899251,1791.1,1790.7,10.30639381]
[1745813947748,0.31383137,1791.0,1790.8,5.58395372]
[1745813948436,0.7774,1791.1,1790.8,5.58395372]
[1745813948944,1.44479251,1791.3,1790.8,5.58409649]
[1745813949114,1.44479251,1791.3,1790.9,5.58365021]
[1745813949306,0.31380373,1791.2,1790.9,5.58365021]
[1745813950426,1.44479251,1791.3,1790.9,5.58365021]
[1745813952051,0.31383196,1791.2,1790.8,5.58391938]
[1745813952550,0.31383196,1791.2,1790.8,11.16781875]
[1745813952748,0.31383196,1791.2,1790.9,5.58377342]
[1745813953047,0.8132,1791.3,1791.0,5.58316478]
[1745813953214,0.8132,1791.3,1791.1,5.58309069]
[1745813953510,0.8132,1791.3,1791.0,5.58328514]
[1745813954048,1.43469251,1791.5,1791.1,11.16604645]
[1745813954253,1.43469251,1791.5,1791.1,10.30405038]